fUSD/lending_fUSD_20250617
["ID","MTS","AMOUNT","RATE_DAILY","PERIOD"]
[366321050,1750185046541,-490.0,0.00016438,2]
[366321051,1750185046551,-4324.5,0.00016438,2]
[366321052,1750185046561,-490.0,0.00016438,2]
[366321053,1750185046570,-490.0,0.00016438,2]
[366321054,1750185046580,-858.5,0.00016438,2]
[366321055,1750185046589,-1146.39,0.00016438,2]
[366321056,1750185046599,-490.0,0.00016438,2]
[366321057,1750185046609,-490.0,0.00016438,2]
[366321058,1750185046619,-490.0,0.00016438,2]
[366321059,1750185046628,-1084.61,0.00016438,2]
[366321060,1750185046638,-151.0,0.00016438,2]
[366321061,1750185046648,-6509.01906577,0.00016446,2]
[366321062,1750185046659,-168.0,0.00016461,2]
[366321063,1750185046668,-6509.01906577,0.00016464,2]
[366321064,1750185046682,-500.0,0.00016469,2]
[366321065,1750185046692,-200.0,0.00016469,2]
[366321066,1750185046703,-6509.01906577,0.00016482,2]
[366321067,1750185046713,-155.16420963,0.0001649,2]
[366321068,1750185046722,-230.4291304,0.000165,2]
[366321069,1750185046732,-20713.13194576,0.000165,2]
[366321070,1750185046742,-630.65829334,0.000165,2]
[366321071,1750185046751,-6509.01906577,0.000165,2]
[366321072,1750185046761,-1507.0,0.00016501,2]
[366321073,1750185046770,-160.493463,0.00016502,2]
[366321074,1750185046780,-160.493463,0.00016502,2]
[366321075,1750185046789,-1020.628665,0.00016502,2]
[366321076,1750185046799,-1020.628665,0.00016502,2]
[366321077,1750185046808,-168.0,0.00016544,2]
[366321078,1750185046818,-168.0,0.00016546,2]
[366321079,1750185046828,-471.130052,0.00016555,2]
[366321080,1750185046838,-471.130052,0.00016555,2]
[366321081,1750185046847,-151.0,0.00016555,2]
[366321082,1750185046858,-268.608962,0.00016555,2]
[366321083,1750185046868,-184.55386862,0.00016555,2]
[366321084,1750185046878,-833.87704394,0.00016559,2]
[366321085,1750185046888,-500.0,0.00016573,2]
[366321086,1750185046898,-907.68,0.00016575,2]
[366321087,1750185046908,-155.16420963,0.0001659,2]
[366321088,1750185046918,-155.16420963,0.00016592,2]
[366321089,1750185046932,-4867.58,0.00016594,2]
[366321090,1750185046941,-500.0,0.00016595,2]
[366321091,1750185046951,-151.0,0.00016595,2]
[366321092,1750185046962,-204.688027,0.00016595,2]
[366321093,1750185046972,-204.688027,0.00016595,2]
[366321094,1750185046982,-151.0,0.00016595,2]
[366321095,1750185046993,-10000.0,0.00016595,2]
[366321096,1750185047003,-10000.0,0.00016595,2]
[366321097,1750185047012,-10000.0,0.00016595,2]
[366321098,1750185047022,-151.0,0.00016595,2]
[366321099,1750185047035,-151.0,0.00016595,2]
[366321100,1750185047045,-151.0,0.00016595,2]
[366321101,1750185047055,-151.0,0.00016595,2]
[366321102,1750185047065,-955.977742,0.00016595,2]
[366321103,1750185047075,-955.977742,0.00016595,2]
[366321104,1750185047084,-151.0,0.00016595,2]
[366321105,1750185047094,-151.0,0.00016595,2]
[366321106,1750185047104,-208.14876,0.00016595,2]
[366321107,1750185047113,-151.0,0.00016595,2]
[366321108,1750185047123,-151.0,0.00016595,2]
[366321109,1750185047133,-1567.834057,0.00016595,2]
[366321110,1750185047143,-151.0,0.00016595,2]
[366321111,1750185047153,-1567.834057,0.00016595,2]
[366321112,1750185047163,-151.0,0.00016595,2]
[366321113,1750185047176,-151.0,0.00016595,2]
[366321114,1750185047186,-151.0,0.00016595,2]
[366321115,1750185047197,-22451.3728708,0.00016595,2]
[366321116,1750185047207,-151.0,0.00016595,2]
[366321117,1750185047217,-202351.5554745,0.00016595,2]
[366321118,1750185047227,-4867.58,0.00016595,2]
[366321119,1750185047237,-455.375537,0.00016595,2]
[366321120,1750185047247,-151.0,0.00016595,2]
[366321121,1750185047257,-455.375537,0.00016595,2]
[366321122,1750185047267,-151.0,0.00016595,2]
[366321123,1750185047277,-151.0,0.00016595,2]
[366321124,1750185047286,-151.0,0.00016595,2]
[366321125,1750185047296,-151.0,0.00016595,2]
[366321126,1750185047305,-151.0,0.00016595,2]
[366321127,1750185047315,-151.0,0.00016595,2]
[366321128,1750185047325,-295.407805,0.00016595,2]
[366321129,1750185047335,-151.0,0.00016595,2]
[366321130,1750185047345,-158.573238,0.00016595,2]
[366321131,1750185047355,-158.573238,0.00016595,2]
[366321132,1750185047365,-182.911229,0.00016595,2]
[366321133,1750185047375,-151.0,0.00016595,2]
[366321134,1750185047384,-151.0,0.00016595,2]
[366321135,1750185047394,-202578.9119387,0.00016595,2]
[366321136,1750185047404,-151.0,0.00016595,2]
[366321137,1750185047418,-156.359629,0.00016595,2]
[366321138,1750185047431,-182.911229,0.00016595,2]
[366321139,1750185047441,-151.0,0.00016595,2]
[366321140,1750185047451,-151.0,0.00016595,2]
[366321141,1750185047461,-312.181237,0.00016595,2]
[366321142,1750185047470,-151.0,0.00016595,2]
[366321143,1750185047481,-312.181237,0.00016595,2]
[366321144,1750185047493,-11728.269521,0.00016595,2]
[366321145,1750185047503,-248.191343,0.00016595,2]
[366321146,1750185047514,-3194.5083257,0.00016595,2]
[366321147,1750185047524,-151.0,0.00016595,2]
[366321148,1750185047533,-151.0,0.00016595,2]
[366321149,1750185047543,-151.0,0.00016596,2]
[366321150,1750185047553,-151.0,0.00016596,2]
[366321151,1750185047563,-151.928009,0.00016596,2]
[366321152,1750185047573,-455.024926,0.00016596,2]
[366321153,1750185047582,-455.024926,0.00016596,2]
[366321154,1750185047592,-503.078915,0.00016596,2]
[366321155,1750185047602,-503.078915,0.00016596,2]
[366321156,1750185047612,-151.0,0.00016596,2]
[366321157,1750185047623,-151.0,0.00016596,2]
[366321158,1750185047632,-295.080756,0.00016596,2]
[366321159,1750185047642,-295.080756,0.00016596,2]
[366321160,1750185047651,-151.0,0.00016596,2]
[366321161,1750185047661,-151.0,0.00016596,2]
[366321162,1750185047672,-151.0,0.00016596,2]
[366321163,1750185047682,-183.747257,0.00016596,2]
[366321164,1750185047692,-151.0,0.00016596,2]
[366321165,1750185047701,-300.0,0.00016599,2]
[366321166,1750185047711,-300.0,0.00016599,2]
[366321167,1750185047720,-300.0,0.00016599,2]
[366321168,1750185047730,-4924.33965504,0.000166,2]
[366321169,1750185047829,-826320.33603934,0.000166,2]
[366321170,1750185047840,-163.48,0.000166,2]
[366321171,1750185047850,-632.02,0.000166,2]
[366321172,1750185047860,-1265941.16414427,0.000166,2]
[366321173,1750185047918,-1401.42528348,0.000166,2]
[366321174,1750185049395,-1012.13,0.00016438,2]
[366321175,1750185049407,-2962.47834037,0.00016438,2]
[366321176,1750185049420,-696.419985,0.00016438,2]
[366321177,1750185049433,-421.24,0.00016438,2]
[366321178,1750185049999,-806.9448532,0.00016438,2]
[366321179,1750185050010,-2842.39291146,0.00016438,2]
[366321180,1750185050023,-127.71390997,0.00016438,2]
[366321181,1750185050033,-490.0,0.00016438,2]
[366321182,1750185050043,-419.58609003,0.000166,2]
[366321183,1750185050059,-824.93485951,0.000166,2]
[366321184,1750185050074,-3425.73029746,0.000166,2]
[366321185,1750185050705,-291.33583164,0.00016438,2]
[366321186,1750185050718,-198.66416836,0.00016438,2]
[366321187,1750185050727,-483.94106348,0.000166,2]
[366321188,1750185050739,-1034.355,0.000166,2]
[366321189,1750185050869,-765.95230389,0.000166,2]
[366321190,1750185050881,-1842.44768907,0.000166,2]
[366321191,1750185050894,-1522.49999988,0.000166,2]
[366321192,1750185050973,-3502.92483313,0.000166,2]
[366321193,1750185050984,-6223.95118902,0.000166,2]
[366321194,1750185050997,-500.0,0.000166,2]
[366321195,1750185051008,-577.46205938,0.000166,2]
[366321196,1750185051019,-406.95691,0.000166,2]
[366321197,1750185051031,-8120.89220215,0.000166,2]
[366321198,1750185051094,-797.65064197,0.000166,2]
[366321199,1750185051822,-799.18,0.00016438,2]
[366321200,1750185051832,-2882.5548718,0.000166,2]
[366321201,1750185052751,-250.08477897,0.00016438,2]
[366321202,1750185052786,-239.91522103,0.00016438,2]
[366321203,1750185052796,-498.64477897,0.000166,2]
[366321204,1750185052836,-4820.82976766,0.000166,2]
[366321205,1750185052847,-607.1391,0.000166,2]
[366321206,1750185052859,-2969.0,0.000166,2]
[366321217,1750186231966,-225.31,0.00013699,2]
[366321218,1750186231978,-200.0,0.00015275,7]
[366321219,1750186231990,-300.0,0.00015452,2]
[366321220,1750186232002,-178.83,0.00015479,2]
[366321221,1750186232013,-1000.0,0.00015628,2]
[366321222,1750186232024,-771.982671,0.00016269,2]
[366321223,1750186232035,-74.327329,0.0001629,2]
[366321224,1750186232072,-133.072671,0.0001629,2]
[366321225,1750186232083,-166.927329,0.00016298,2]
[366321226,1750186232132,-133.072671,0.00016298,2]
[366321261,1750186232627,-1200.0,0.00016298,2]
[366321263,1750186232639,-5650.1437,0.000163,2]
[366321265,1750186232650,-414.26263758,0.000163,2]
[366321268,1750186232665,-713.75344486,0.000163,2]
[366321270,1750186232675,-251.89832196,0.000163,2]
[366321272,1750186232686,-184.55386862,0.000163,2]
[366321274,1750186232696,-1888.10220852,0.000163,2]
[366321276,1750186232707,-231.21681138,0.000163,2]
[366321279,1750186232717,-713.75344478,0.00016329,2]
[366321281,1750186232727,-1888.10220849,0.00016329,2]
[366321283,1750186232737,-713.75344478,0.00016359,2]
[366321285,1750186232748,-1354.47153031,0.00016359,2]
[366321287,1750186232760,-533.63067818,0.00016359,2]
[366321289,1750186232771,-502.81348365,0.00016373,2]
[366321291,1750186232781,-500.0,0.00016373,2]
[366321294,1750186232791,-500.0,0.00016373,2]
[366321296,1750186232804,-500.0,0.00016373,2]
[366321298,1750186232814,-500.0,0.00016373,2]
[366321300,1750186232825,-299.48067091,0.00016373,2]
[366321302,1750186232836,-500.0,0.00016373,2]
[366321304,1750186232848,-500.0,0.00016373,2]
[366321306,1750186232859,-422.50480423,0.00016373,2]
[366321308,1750186232870,-205.42608653,0.00016373,2]
[366321310,1750186232881,-500.0,0.00016373,2]
[366321312,1750186232891,-500.0,0.00016373,2]
[366321314,1750186232902,-726.144,0.00016382,2]
[366321316,1750186232912,-713.75344478,0.00016388,2]
[366321319,1750186232922,-1888.10220849,0.00016388,2]
[366321321,1750186232933,-6371.17797293,0.0001639,2]
[366321376,1750186237901,-850.77,0.0001639,2]
[366321377,1750186237913,-4823.23897644,0.0001639,2]
[366321378,1750186237956,-1726.15247777,0.0001639,2]
[366321379,1750186238011,-601.30008376,0.0001639,2]
[366321380,1750186238021,-151.0,0.0001639,2]
[366321381,1750186238031,-500.0,0.00016399,2]
[366321382,1750186238041,-500.0,0.00016399,2]
[366321383,1750186238052,-153.03224897,0.00016399,2]
[366321384,1750186238062,-500.0,0.00016399,2]
[366321385,1750186238072,-186.93435263,0.00016399,2]
[366321386,1750186238081,-500.0,0.00016399,2]
[366321387,1750186238091,-5803.3104535,0.000164,2]
[366321388,1750186238117,-6135.28475063,0.000164,2]
[366321574,1750186240025,-3973.6988002,0.000164,2]
[366321583,1750186240124,-5531.76461532,0.000164,2]
[366321585,1750186240136,-520.35,0.000164,2]
[366321588,1750186240148,-1237.10500001,0.000164,2]
[366321594,1750186240203,-494.99999995,0.000164,2]
[366321596,1750186240215,-82857.11667909,0.000164,2]
[366321599,1750186240226,-3887.24481686,0.000164,2]
[366321601,1750186240239,-1000.0,0.000164,2]
[366321603,1750186240251,-460.0,0.000164,2]
[366321605,1750186240263,-3747.26080105,0.000164,2]
[366321608,1750186240279,-5199.5,0.000164,2]
[366321611,1750186240302,-99037.09365612,0.000164,2]
[366321614,1750186240315,-654.839996,0.000164,2]
[366321616,1750186240327,-1129.6409214,0.000164,2]
[366321618,1750186240340,-9320.81847655,0.000164,2]
[366321622,1750186240367,-867.89771197,0.000164,2]
[366321625,1750186240380,-10406.0,0.000164,2]
[366321633,1750186240454,-18709.04744668,0.000164,2]
[366321635,1750186240467,-57121.53224757,0.000164,2]
[366321638,1750186240480,-3371.29410338,0.000164,2]
[366321883,1750186242929,-221.41716157,0.000163,2]
[366321885,1750186242940,-39261.47609781,0.000164,2]
[366321888,1750186242953,-470.43935122,0.000164,2]
[366321898,1750186243035,-194711.84924772,0.000164,2]
[366321902,1750186243049,-14851.10087165,0.000164,2]
[366321907,1750186243095,-305.49844617,0.000164,2]
[366321910,1750186243109,-564.91500818,0.000164,2]
[366321914,1750186243146,-9410.75234343,0.000164,2]
[366321916,1750186243159,-9652.48560775,0.000164,2]
[366321919,1750186243172,-21995.19656695,0.000164,2]
[366321921,1750186243184,-8576.23298001,0.000164,2]
[366321923,1750186243198,-450.0,0.000164,2]
[366321925,1750186243210,-870.44412021,0.000164,2]
[366321927,1750186243223,-534.3999998,0.000164,2]
[366321931,1750186243253,-8855.58914997,0.000164,2]
[366321933,1750186243266,-2513.09890421,0.000164,2]
[366321936,1750186243280,-659.55599547,0.000164,2]
[366321943,1750186243344,-485.305,0.000164,2]
[366321945,1750186243357,-1932.79341713,0.000164,2]
[366321947,1750186243370,-2903.04000028,0.000164,2]
[366321950,1750186243383,-570.7636879,0.000164,2]
[366321952,1750186243395,-506.62630079,0.000164,2]
[366321954,1750186243410,-352.72799642,0.000164,2]
[366322201,1750186246044,-6624.18964863,0.000164,2]
[366322206,1750186246078,-10539.80490408,0.000164,2]
[366322209,1750186246092,-546.0,0.000164,2]
[366322211,1750186246106,-1282.88285477,0.000164,2]
[366322214,1750186246120,-12495.6590002,0.000164,2]
[366322218,1750186246154,-22711.93105574,0.000164,2]
[366322221,1750186246168,-541.2354342,0.000164,2]
[366322224,1750186246194,-170618.77877529,0.000164,2]
[366322227,1750186246208,-351.97202864,0.000164,2]
[366322229,1750186246223,-3640.13361975,0.000164,2]
[366322234,1750186246257,-2289.45184265,0.000164,2]
[366322236,1750186246270,-1933.61625244,0.000164,2]
[366322241,1750186246301,-87147.76983536,0.000164,2]
[366322243,1750186246315,-37997.76221905,0.000164,2]
[366322246,1750186246329,-25896.9722888,0.000164,2]
[366322798,1750187432164,-214.04,0.00013699,2]
[366322799,1750187432174,-250.0,0.00015,2]
[366322800,1750187432183,-1000.0,0.00015348,2]
[366322801,1750187432192,-200.0,0.00015351,7]
[366322802,1750187432203,-534.34218808,0.00015534,2]
[366322803,1750187432213,-300.0,0.00015546,2]
[366322804,1750187432222,-300.0,0.00015552,2]
[366322805,1750187432231,-154.0945543,0.00015574,2]
[366322806,1750187432243,-4408.913464,0.00015674,2]
[366322807,1750187432252,-455.27,0.000157,2]
[366322808,1750187432262,-200.0,0.00015753,2]
[366322809,1750187432271,-1200.0,0.00015777,2]
[366322810,1750187432280,-909.01,0.00015778,2]
[366322811,1750187432290,-300.0,0.00015899,2]
[366322812,1750187432299,-2564.11075264,0.000159,2]
[366322813,1750187432308,-154.0945543,0.00015937,2]
[366322814,1750187432318,-2564.11075262,0.00016038,2]
[366322815,1750187432328,-2564.11075262,0.00016176,2]
[366322816,1750187432337,-5564.0,0.000162,5]
[366322817,1750187432346,-300.0,0.00016288,2]
[366322818,1750187432356,-207.4,0.0001629,2]
[366322819,1750187432366,-1957.856,0.0001629,2]
[366322820,1750187432375,-356.0,0.00016299,2]
[366322821,1750187432384,-170.85,0.000163,2]
[366322822,1750187432394,-188.62,0.000163,2]
[366322823,1750187432403,-150.0,0.000163,2]
[366322824,1750187432412,-170.85,0.000163,2]
[366322825,1750187432421,-150.82,0.000163,2]
[366322826,1750187432431,-150.0,0.000163,2]
[366322827,1750187432440,-170.85,0.000163,2]
[366322828,1750187432450,-150.0,0.000163,2]
[366322829,1750187432459,-461.71105626,0.000163,2]
[366322830,1750187432469,-250.61944635,0.000163,2]
[366322831,1750187432478,-3076.94857307,0.000163,2]
[366322832,1750187432488,-2245.73606272,0.000163,2]
[366322833,1750187432497,-154.0945543,0.000163,2]
[366322834,1750187432506,-154.14454092,0.000163,2]
[366322835,1750187432516,-215.31284673,0.000163,2]
[366322836,1750187432525,-2564.11075262,0.00016314,2]
[366322837,1750187432535,-3076.94857298,0.00016341,2]
[366322838,1750187432544,-2245.73606266,0.00016341,2]
[366322839,1750187432553,-390.0166039,0.00016345,2]
[366322840,1750187432563,-982.94092865,0.0001636,2]
[366322841,1750187432572,-3076.94857298,0.00016382,2]
[366322842,1750187432582,-2245.73606266,0.00016382,2]
[366322843,1750187432591,-800.0,0.00016386,2]
[366322844,1750187432601,-6371.17797293,0.0001639,2]
[366322845,1750187432610,-1165.878,0.0001639,2]
[366322846,1750187432620,-472.94801825,0.00016399,2]
[366322847,1750187432630,-466.19240493,0.00016399,2]
[366322848,1750187432640,-1154.68789898,0.00016399,5]
[366322849,1750187432650,-353.04615263,0.00016399,2]
[366322850,1750187432660,-69875.26038547,0.00016399,2]
[366322851,1750187432670,-63159.28311145,0.000164,2]
[366322853,1750187432691,-85693.90777307,0.000164,2]
[366322857,1750187432721,-17670.34828078,0.000164,2]
[366322860,1750187432740,-1154.68789898,0.000164,2]
[366322929,1750187438125,-3425.91230633,0.000164,2]
[366322930,1750187438179,-500.0,0.000164,2]
[366322931,1750187438240,-21999.99739972,0.000164,2]
[366322932,1750187438288,-5453.5,0.000164,2]
[366323032,1750187440175,-1118.0,0.000164,2]
[366323039,1750187440229,-375.155,0.000164,2]
[366323051,1750187440340,-12586.41092114,0.000164,2]
[366323068,1750187440497,-243317.88906969,0.000164,2]
[366323070,1750187440508,-2584.03066642,0.000164,2]
[366323072,1750187440520,-162701.03119564,0.000164,2]
[366323108,1750187440871,-336.0581857,0.000164,2]
[366323114,1750187440924,-28800.0,0.000164,2]
[366323117,1750187440939,-81998.55394755,0.000164,2]
[366323353,1750187443187,-615.0,0.000162,5]
[366323355,1750187443199,-598.93118306,0.000164,2]
[366323371,1750187443341,-600.0,0.000164,2]
[366323671,1750187446491,-1805.53806537,0.000164,2]
[366323676,1750187446531,-11429.28,0.000164,2]
[366323681,1750187446572,-10902.0,0.000164,2]
[366324239,1750188632264,-203.33,0.00013699,2]
[366324241,1750188632274,-250.0,0.00015,2]
[366324242,1750188632283,-200.0,0.00015423,7]
[366324243,1750188632293,-178.83,0.00015463,2]
[366324244,1750188632302,-1000.0,0.00015463,2]
[366324245,1750188632311,-300.0,0.00015899,2]
[366324246,1750188632320,-1200.0,0.00015899,2]
[366324247,1750188632330,-2222.22931915,0.000159,2]
[366324248,1750188632339,-210.91,0.00016,7]
[366324249,1750188632348,-2222.22931893,0.00016038,2]
[366324250,1750188632359,-427.51027983,0.00016076,2]
[366324251,1750188632368,-250.0,0.00016137,2]
[366324252,1750188632378,-300.0,0.00016137,2]
[366324253,1750188632388,-2222.22931893,0.00016176,2]
[366324254,1750188632397,-170.85,0.000162,2]
[366324255,1750188632407,-150.0,0.000162,2]
[366324256,1750188632416,-200.0,0.00016274,2]
[366324257,1750188632426,-208.0112811,0.00016275,2]
[366324258,1750188632436,-207.4,0.0001629,2]
[366324259,1750188632445,-208.0112811,0.00016292,2]
[366324260,1750188632454,-993.14918681,0.00016292,2]
[366324261,1750188632464,-300.0,0.00016299,2]
[366324262,1750188632474,-2868.9848,0.000163,2]
[366324263,1750188632483,-1000.0,0.000163,2]
[366324264,1750188632492,-1000.0,0.000163,2]
[366324265,1750188632502,-1000.0,0.000163,2]
[366324266,1750188632511,-1000.0,0.000163,3]
[366324267,1750188632520,-1000.0,0.000163,2]
[366324268,1750188632529,-1000.0,0.000163,2]
[366324269,1750188632539,-2241.68024638,0.000163,2]
[366324270,1750188632548,-1845.9559259,0.000163,2]
[366324271,1750188632561,-395.75233398,0.000163,2]
[366324272,1750188632571,-289.74303306,0.000163,2]
[366324273,1750188632580,-239.29190161,0.000163,2]
[366324274,1750188632589,-208.0112811,0.000163,2]
[366324275,1750188632599,-229.2459514,0.00016301,2]
[366324276,1750188632610,-229.2459514,0.00016301,2]
[366324277,1750188632623,-200.0,0.00016313,2]
[366324278,1750188632632,-2222.22931893,0.00016314,2]
[366324279,1750188632643,-229.2459514,0.00016318,2]
[366324280,1750188632656,-200.0,0.00016323,2]
[366324281,1750188632667,-208.0112811,0.00016333,2]
[366324282,1750188632678,-208.0112811,0.0001634,2]
[366324283,1750188632687,-229.2459514,0.0001634,2]
[366324284,1750188632699,-2241.68024636,0.00016341,2]
[366324285,1750188632710,-1845.9559259,0.00016341,2]
[366324286,1750188632720,-229.2459514,0.00016343,2]
[366324287,1750188632735,-300.0,0.0001635,2]
[366324288,1750188632744,-200.0,0.00016354,2]
[366324289,1750188632757,-500.0,0.00016356,2]
[366324290,1750188632767,-208.0112811,0.00016357,2]
[366324291,1750188632779,-200.0,0.00016365,2]
[366324292,1750188632789,-229.2459514,0.00016366,2]
[366324293,1750188632800,-452.93647963,0.00016374,2]
[366324294,1750188632811,-208.0112811,0.00016375,2]
[366324295,1750188632823,-200.0,0.00016377,2]
[366324296,1750188632832,-208.0112811,0.0001638,2]
[366324297,1750188632843,-2241.68024636,0.00016382,2]
[366324298,1750188632852,-1845.9559259,0.00016382,2]
[366324299,1750188632862,-1365.086,0.00016382,2]
[366324300,1750188632871,-229.2459514,0.00016388,2]
[366324301,1750188632880,-229.2459514,0.00016389,2]
[366324302,1750188632890,-151.0,0.0001639,2]
[366324303,1750188632900,-119357.19943497,0.00016392,2]
[366324304,1750188632923,-660.17512427,0.00016392,2]
[366324347,1750188636885,-259.99342664,0.00016392,2]
[366324350,1750188636897,-18459.32930092,0.00016392,2]
[366324353,1750188636917,-573.9745961,0.00016392,2]
[366324355,1750188636928,-13759.101363,0.00016392,2]
[366324357,1750188636940,-13346.67950088,0.00016392,2]
[366324473,1750188638249,-2485.68083979,0.00016392,2]
[366324475,1750188638260,-69991.07921795,0.00016392,2]
[366324490,1750188638390,-611.70497818,0.00016392,2]
[366324492,1750188638402,-4701.93934669,0.00016392,2]
[366324498,1750188638446,-1261.57311551,0.00016392,2]
[366324500,1750188638456,-300.0,0.00016392,2]
[366324502,1750188638465,-150.0,0.00016399,2]
[366324504,1750188638474,-181.06361277,0.00016399,2]
[366324506,1750188638484,-389.57426876,0.00016399,2]
[366324508,1750188638494,-15932.26211556,0.000164,2]
[366324511,1750188638520,-2177.4,0.000164,2]
[366324514,1750188638536,-488.66430191,0.000164,2]
[366324703,1750188640351,-1796.35144224,0.000164,2]
[366324736,1750188640672,-345.03314599,0.000164,2]
[366324738,1750188640684,-113239.00000001,0.000164,2]
[366324741,1750188640695,-8440.0,0.000164,2]
[366324745,1750188640727,-1746.98726466,0.000164,2]
[366324747,1750188640741,-301.90143736,0.000164,2]
[366324750,1750188640752,-250.3850028,0.000164,2]
[366324752,1750188640763,-1965.15389059,0.000164,2]
[366324754,1750188640775,-327.6644,0.000164,2]
[366324757,1750188640790,-672.25073517,0.000164,2]
[366325322,1750188646412,-500.0,0.00016391,2]
[366325324,1750188646422,-500.0,0.00016391,2]
[366325326,1750188646432,-449.17867987,0.00016391,2]
[366325328,1750188646441,-46.03042445,0.00016391,2]
[366325684,1750188773920,-155.86,0.000199,31]
[366325685,1750188773952,-155.86,0.000199,31]
[366325686,1750188774043,-152.0,0.00022948,30]
[366325687,1750188774073,-1164.77924489,0.00023,30]
[366325688,1750188774111,-155.86,0.000233,31]
[366325689,1750188774145,-155.86,0.000233,31]
[366325690,1750188774181,-155.86,0.000233,31]
[366325691,1750188774217,-155.86,0.000233,31]
[366325692,1750188774252,-252027.61696119,0.000239,30]
[366325693,1750188774288,-833.87704394,0.00024,30]
[366325694,1750188774322,-509.54482278,0.000241,30]
[366325695,1750188774358,-500.0,0.000241,30]
[366325696,1750188774393,-500.0,0.000241,30]
[366325697,1750188774426,-500.0,0.000241,30]
[366325698,1750188774457,-500.0,0.000241,30]
[366325699,1750188774489,-700.0,0.000241,30]
[366325700,1750188774521,-500.0,0.000241,30]
[366325701,1750188774554,-700.0,0.000241,30]
[366325702,1750188774584,-500.0,0.000241,30]
[366325703,1750188774618,-500.0,0.000241,30]
[366325704,1750188774650,-700.0,0.000241,30]
[366325705,1750188774694,-700.0,0.000241,30]
[366325706,1750188774726,-700.0,0.000241,30]
[366325707,1750188774757,-500.0,0.000241,30]
[366325708,1750188774790,-700.0,0.000241,30]
[366325709,1750188774820,-500.0,0.000241,30]
[366325710,1750188774853,-500.0,0.000241,30]
[366325711,1750188774884,-500.0,0.000241,30]
[366325712,1750188774915,-946.42232158,0.000241,30]
[366325713,1750188774948,-500.0,0.000241,30]
[366325714,1750188774983,-700.0,0.000241,30]
[366325715,1750188775015,-500.0,0.000241,30]
[366325716,1750188775047,-700.0,0.000241,30]
[366325717,1750188775077,-500.0,0.000241,30]
[366325718,1750188775113,-700.0,0.000241,30]
[366325719,1750188775143,-700.0,0.000241,30]
[366325720,1750188775173,-500.0,0.000241,30]
[366325721,1750188775203,-700.0,0.000241,30]
[366325722,1750188775233,-500.0,0.000241,30]
[366325723,1750188775264,-1295.75331405,0.000241,30]
[366325724,1750188775295,-500.0,0.000241,30]
[366325725,1750188775324,-500.0,0.000241,30]
[366325726,1750188775354,-500.0,0.000241,30]
[366325727,1750188775382,-500.0,0.000241,30]
[366325728,1750188775409,-500.0,0.000241,30]
[366325729,1750188775437,-671.56130853,0.000241,30]
[366325730,1750188775465,-2200.0,0.000241,30]
[366325731,1750188775491,-2200.0,0.000241,30]
[366325732,1750188775518,-2200.0,0.000241,30]
[366325733,1750188775547,-2200.0,0.000241,30]
[366325734,1750188775573,-650.47123556,0.000241,30]
[366325735,1750188775603,-1300.0,0.000241,30]
[366325736,1750188775628,-511.69497114,0.000241,30]
[366325737,1750188775654,-513.32763763,0.000241,30]
[366325738,1750188775680,-500.0,0.000241,30]
[366325739,1750188775706,-1300.0,0.000241,30]
[366325740,1750188775732,-2200.0,0.000241,30]
[366325741,1750188775758,-500.0,0.000241,30]
[366325742,1750188775785,-1300.0,0.000241,30]
[366325743,1750188775811,-2200.0,0.000241,30]
[366325744,1750188775838,-500.0,0.000241,30]